[Event "November 21 Early 2023"]
[Site "https://www.chess.com"]
[Date "2023.11.21"]
[Round "2"]
[White "Haitin, Ilja"]
[Black "MKlose11"]
[Result "1/2-1/2"]
[Board "147"]
[TimeControl "180+1"]
[WhiteFideId "4501764"]
[WhiteElo "2221"]
[BlackElo "2664"]
[WhiteTeam "EST"]
[WhiteClock "0:00:02"]
[BlackClock "0:00:16"]

1. Nf3 {[%clk 0:03:00]}  Nf6 {[%clk 0:02:58]} 2. g3 {[%clk 0:03:00]}  c5 {[%clk 0:02:59]} 3. c4 {[%clk 0:02:59]}  Nc6 {[%clk 0:03:00]} 4. Bg2 {[%clk 0:02:57]}  d6 {[%clk 0:03:00]} 5. Nc3 {[%clk 0:02:56]}  g6 {[%clk 0:03:00]} 6. O-O {[%clk 0:02:50]}  Bg7 {[%clk 0:02:59]} 7. d4 {[%clk 0:02:50]}  cxd4 {[%clk 0:03:00]} 8. Nxd4 {[%clk 0:02:49]}  Bd7 {[%clk 0:03:01]} 9. Nc2 {[%clk 0:02:34]}  O-O {[%clk 0:03:00]} 10. Bd2 {[%clk 0:02:26]}  Rc8 {[%clk 0:02:56]} 11. b3 {[%clk 0:02:25]}  Re8 {[%clk 0:02:55]} 12. Qc1 {[%clk 0:02:22]}  Qa5 {[%clk 0:02:55]} 13. Nd5 {[%clk 0:02:15]}  Qa6 {[%clk 0:02:55]} 14. Ncb4 {[%clk 0:01:59]}  Nxb4 {[%clk 0:02:53]} 15. Nxb4 {[%clk 0:01:59]}  Qb6 {[%clk 0:02:50]} 16. Bc3 {[%clk 0:01:58]}  a5 {[%clk 0:02:21]} 17. Nd3 {[%clk 0:01:52]}  a4 {[%clk 0:02:19]} 18. Qb2 {[%clk 0:01:49]}  axb3 {[%clk 0:02:19]} 19. axb3 {[%clk 0:01:48]}  Bc6 {[%clk 0:02:19]} 20. Ba5 {[%clk 0:01:35]}  Qa7 {[%clk 0:01:59]} 21. Bc7 {[%clk 0:01:35]}  Qxa1 {[%clk 0:01:55]} 22. Qxa1 {[%clk 0:01:29]}  Rxc7 {[%clk 0:01:51]} 23. Qa5 {[%clk 0:01:21]}  Rcc8 {[%clk 0:01:48]} 24. Nb4 {[%clk 0:01:19]}  Nd7 {[%clk 0:01:40]} 25. Nxc6 {[%clk 0:01:10]}  bxc6 {[%clk 0:01:40]} 26. b4 {[%clk 0:00:55]}  Ne5 {[%clk 0:01:37]} 27. Rc1 {[%clk 0:00:46]}  h5 {[%clk 0:01:27]} 28. Qa2 {[%clk 0:00:38]}  Rb8 {[%clk 0:01:24]} 29. Rb1 {[%clk 0:00:35]}  Rb6 {[%clk 0:01:22]} 30. b5 {[%clk 0:00:34]}  Reb8 {[%clk 0:01:17]} 31. Qa4 {[%clk 0:00:28]}  d5 {[%clk 0:01:12]} 32. cxd5 {[%clk 0:00:26]}  cxb5 {[%clk 0:01:11]} 33. Qe4 {[%clk 0:00:20]}  b4 {[%clk 0:01:06]} 34. h3 {[%clk 0:00:18]}  Bf6 {[%clk 0:00:59]} 35. f4 {[%clk 0:00:17]}  Nd7 {[%clk 0:00:59]} 36. g4 {[%clk 0:00:17]}  hxg4 {[%clk 0:00:58]} 37. hxg4 {[%clk 0:00:18]}  b3 {[%clk 0:00:56]} 38. g5 {[%clk 0:00:17]}  Rb4 {[%clk 0:00:54]} 39. Qd3 {[%clk 0:00:13]}  Nc5 {[%clk 0:00:49]} 40. Qd2 {[%clk 0:00:07]}  Bg7 {[%clk 0:00:49]} 41. d6 {[%clk 0:00:06]}  exd6 {[%clk 0:00:44]} 42. Qxd6 {[%clk 0:00:07]}  Na4 {[%clk 0:00:45]} 43. Bd5 {[%clk 0:00:05]}  Nc3 {[%clk 0:00:40]} 44. Rxb3 {[%clk 0:00:01]}  Rxb3 {[%clk 0:00:37]} 45. Bxb3 {[%clk 0:00:02]}  Rxb3 {[%clk 0:00:37]} 46. Qd8+ {[%clk 0:00:02]}  Bf8 {[%clk 0:00:37]} 47. f5 {[%clk 0:00:03]}  Nxe2+ {[%clk 0:00:35]} 48. Kf2 {[%clk 0:00:03]}  Nf4 {[%clk 0:00:33]} 49. fxg6 {[%clk 0:00:03]}  Nxg6 {[%clk 0:00:33]} 50. Qd5 {[%clk 0:00:03]}  Rb4 {[%clk 0:00:32]} 51. Qa5 {[%clk 0:00:02]}  Rf4+ {[%clk 0:00:32]} 52. Kg3 {[%clk 0:00:03]}  Be7 {[%clk 0:00:32]} 53. Kh3 {[%clk 0:00:03]}  Rh4+ {[%clk 0:00:30]} 54. Kg3 {[%clk 0:00:03]}  Rh5 {[%clk 0:00:30]} 55. Qa8+ {[%clk 0:00:03]}  Kh7 {[%clk 0:00:28]} 56. Qa1 {[%clk 0:00:04]}  Rxg5+ {[%clk 0:00:28]} 57. Kh3 {[%clk 0:00:04]}  Bd6 {[%clk 0:00:20]} 58. Qg7+ {[%clk 0:00:02]}  Kxg7 {[%clk 0:00:16]} 1/2-1/2

[Event "November 21 Early 2023"]
[Site "https://www.chess.com"]
[Date "2023.11.21"]
[Round "2"]
[White "Herman, Daniel"]
[Black "Wu, Derek"]
[Result "0-1"]
[Board "149"]
[TimeControl "180+1"]
[WhiteFideId "30935008"]
[BlackFideId "30914558"]
[WhiteElo "1897"]
[BlackElo "2211"]
[WhiteTeam "USA"]
[BlackTeam "USA"]
[WhiteClock "0:00:32"]
[BlackClock "0:00:34"]

1. d4 {[%clk 0:03:00]}  d5 {[%clk 0:02:57]} 2. c4 {[%clk 0:03:00]}  c6 {[%clk 0:02:58]} 3. cxd5 {[%clk 0:03:00]}  cxd5 {[%clk 0:02:58]} 4. Bg5 {[%clk 0:03:00]}  f6 {[%clk 0:02:57]} 5. Bd2 {[%clk 0:03:00]}  Nc6 {[%clk 0:02:56]} 6. Nc3 {[%clk 0:02:59]}  e5 {[%clk 0:02:46]} 7. e4 {[%clk 0:02:49]}  dxe4 {[%clk 0:02:21]} 8. d5 {[%clk 0:02:48]}  Nd4 {[%clk 0:02:18]} 9. Bc4 {[%clk 0:02:40]}  Bf5 {[%clk 0:02:10]} 10. Nge2 {[%clk 0:02:37]}  e3 {[%clk 0:02:02]} 11. Bxe3 {[%clk 0:02:13]}  Nc2+ {[%clk 0:02:02]} 12. Kf1 {[%clk 0:02:13]}  Nxa1 {[%clk 0:01:49]} 13. Qxa1 {[%clk 0:02:00]}  Bd6 {[%clk 0:01:42]} 14. h4 {[%clk 0:01:55]}  h5 {[%clk 0:01:31]} 15. Ng3 {[%clk 0:01:53]}  Bg6 {[%clk 0:01:28]} 16. Nge4 {[%clk 0:01:48]}  a6 {[%clk 0:01:23]} 17. Rh3 {[%clk 0:01:41]}  Rc8 {[%clk 0:01:21]} 18. Bb3 {[%clk 0:01:39]}  Ne7 {[%clk 0:01:15]} 19. Qd1 {[%clk 0:01:23]}  Nf5 {[%clk 0:01:08]} 20. Bc2 {[%clk 0:01:20]}  O-O {[%clk 0:01:00]} 21. Ng3 {[%clk 0:01:11]}  Nxe3+ {[%clk 0:00:58]} 22. fxe3 {[%clk 0:01:10]}  Qe8 {[%clk 0:00:52]} 23. Bf5 {[%clk 0:01:07]}  Bb4 {[%clk 0:00:39]} 24. Bxc8 {[%clk 0:01:02]}  Qxc8 {[%clk 0:00:40]} 25. Nxh5 {[%clk 0:00:49]}  Qf5+ {[%clk 0:00:38]} 26. Qf3 {[%clk 0:00:32]}  Qxf3+ {[%clk 0:00:34]} 0-1

[Event "November 21 Early 2023"]
[Site "https://www.chess.com"]
[Date "2023.11.21"]
[Round "2"]
[White "Spichkin, Alexander"]
[Black "Volkov, Maksim"]
[Result "0-1"]
[Board "151"]
[TimeControl "180+1"]
[WhiteFideId "4144074"]
[BlackFideId "54123070"]
[WhiteElo "1968"]
[BlackElo "2293"]
[WhiteTeam "RUS"]
[BlackTeam "RUS"]
[WhiteClock "0:00:50"]
[BlackClock "0:01:39"]

1. f4 {[%clk 0:02:24]}  d5 {[%clk 0:02:51]} 2. Nf3 {[%clk 0:02:23]}  Nf6 {[%clk 0:02:51]} 3. e3 {[%clk 0:02:24]}  c5 {[%clk 0:02:50]} 4. Be2 {[%clk 0:02:21]}  g6 {[%clk 0:02:50]} 5. O-O {[%clk 0:02:22]}  Bg7 {[%clk 0:02:50]} 6. d3 {[%clk 0:02:22]}  O-O {[%clk 0:02:50]} 7. Kh1 {[%clk 0:02:23]}  Nc6 {[%clk 0:02:48]} 8. a4 {[%clk 0:02:23]}  Qc7 {[%clk 0:02:46]} 9. Nc3 {[%clk 0:02:24]}  a6 {[%clk 0:02:45]} 10. e4 {[%clk 0:02:24]}  dxe4 {[%clk 0:02:43]} 11. dxe4 {[%clk 0:02:24]}  Rd8 {[%clk 0:02:44]} 12. Qe1 {[%clk 0:02:24]}  Nd4 {[%clk 0:02:44]} 13. Bd1 {[%clk 0:02:24]}  Be6 {[%clk 0:02:35]} 14. e5 {[%clk 0:02:21]}  Nd5 {[%clk 0:02:34]} 15. Ng5 {[%clk 0:02:16]}  Nxc3 {[%clk 0:02:31]} 16. bxc3 {[%clk 0:02:16]}  Nf5 {[%clk 0:02:30]} 17. Nxe6 {[%clk 0:02:16]}  fxe6 {[%clk 0:02:30]} 18. Be2 {[%clk 0:02:10]}  h5 {[%clk 0:02:24]} 19. Bc4 {[%clk 0:02:09]}  Kf7 {[%clk 0:02:24]} 20. Be3 {[%clk 0:02:00]}  Qc6 {[%clk 0:02:23]} 21. a5 {[%clk 0:01:58]}  Qe4 {[%clk 0:02:19]} 22. Bd3 {[%clk 0:01:38]}  Qxe3 {[%clk 0:02:17]} 23. Bxf5 {[%clk 0:01:39]}  Qxe1 {[%clk 0:02:17]} 24. Bxg6+ {[%clk 0:01:39]}  Kxg6 {[%clk 0:02:17]} 25. Raxe1 {[%clk 0:01:39]}  Rd2 {[%clk 0:02:17]} 26. Re3 {[%clk 0:01:39]}  h4 {[%clk 0:02:12]} 27. Rh3 {[%clk 0:01:36]}  Rh8 {[%clk 0:02:10]} 28. Kg1 {[%clk 0:01:21]}  Rxc2 {[%clk 0:02:10]} 29. Rb1 {[%clk 0:01:21]}  Kf5 {[%clk 0:02:01]} 30. Rf3 {[%clk 0:01:18]}  Rd8 {[%clk 0:02:00]} 31. Rf2 {[%clk 0:01:02]}  Rxf2 {[%clk 0:01:57]} 32. Kxf2 {[%clk 0:01:02]}  Kxf4 {[%clk 0:01:55]} 33. Rxb7 {[%clk 0:01:02]}  Rd2+ {[%clk 0:01:53]} 34. Kf1 {[%clk 0:01:00]}  Bxe5 {[%clk 0:01:53]} 35. Rxe7 {[%clk 0:01:00]}  Ke3 {[%clk 0:01:52]} 36. Ke1 {[%clk 0:01:00]}  Rxg2 {[%clk 0:01:48]} 37. Kd1 {[%clk 0:00:59]}  Kd3 {[%clk 0:01:42]} 38. Kc1 {[%clk 0:00:58]}  Kxc3 {[%clk 0:01:42]} 39. Kd1 {[%clk 0:00:58]}  Rxh2 {[%clk 0:01:36]} 40. Rxe6 {[%clk 0:00:58]}  Bd4 {[%clk 0:01:37]} 41. Rxa6 {[%clk 0:00:54]}  Kd3 {[%clk 0:01:37]} 42. Re6 {[%clk 0:00:53]}  Rh1+ {[%clk 0:01:37]} 43. Re1 {[%clk 0:00:53]}  Rxe1+ {[%clk 0:01:38]} 44. Kxe1 {[%clk 0:00:53]}  c4 {[%clk 0:01:39]} 45. a6 {[%clk 0:00:50]}  h3 {[%clk 0:01:39]} 0-1

[Event "November 21 Early 2023"]
[Site "https://www.chess.com"]
[Date "2023.11.21"]
[Round "2"]
[White "Piesik, Piotr"]
[Black "Kukreja Sankalp"]
[Result "1-0"]
[Board "152"]
[TimeControl "180+1"]
[WhiteFideId "1136194"]
[BlackFideId "45027676"]
[WhiteElo "2309"]
[BlackElo "2126"]
[WhiteTeam "CZE"]
[BlackTeam "IND"]
[WhiteClock "0:01:33"]
[BlackClock "0:00:43"]

1. Nf3 {[%clk 0:03:00]}  d5 {[%clk 0:02:57]} 2. g3 {[%clk 0:03:00]}  Nf6 {[%clk 0:02:57]} 3. Bg2 {[%clk 0:03:01]}  c6 {[%clk 0:02:57]} 4. O-O {[%clk 0:03:01]}  Bf5 {[%clk 0:02:57]} 5. d3 {[%clk 0:03:02]}  e6 {[%clk 0:02:58]} 6. Nbd2 {[%clk 0:03:03]}  h6 {[%clk 0:02:58]} 7. Qe1 {[%clk 0:03:03]}  Be7 {[%clk 0:02:58]} 8. e4 {[%clk 0:03:04]}  Bh7 {[%clk 0:02:59]} 9. Qe2 {[%clk 0:03:04]}  O-O {[%clk 0:02:59]} 10. b3 {[%clk 0:03:05]}  a5 {[%clk 0:03:00]} 11. a4 {[%clk 0:03:06]}  c5 {[%clk 0:02:57]} 12. Bb2 {[%clk 0:03:05]}  Nc6 {[%clk 0:02:57]} 13. Ne5 {[%clk 0:03:05]}  Re8 {[%clk 0:02:55]} 14. Nxc6 {[%clk 0:03:03]}  bxc6 {[%clk 0:02:56]} 15. f4 {[%clk 0:03:03]}  Qb6 {[%clk 0:02:51]} 16. Kh1 {[%clk 0:03:01]}  Rab8 {[%clk 0:02:49]} 17. Bc3 {[%clk 0:02:57]}  Nd7 {[%clk 0:02:47]} 18. Rae1 {[%clk 0:02:54]}  Bf6 {[%clk 0:02:47]} 19. Bxf6 {[%clk 0:02:53]}  Nxf6 {[%clk 0:02:48]} 20. Qf2 {[%clk 0:02:51]}  Qb4 {[%clk 0:02:42]} 21. h3 {[%clk 0:02:44]}  h5 {[%clk 0:02:41]} 22. Bf3 {[%clk 0:02:40]}  Rbc8 {[%clk 0:02:33]} 23. g4 {[%clk 0:02:38]}  hxg4 {[%clk 0:02:33]} 24. hxg4 {[%clk 0:02:39]}  Rcd8 {[%clk 0:02:33]} 25. g5 {[%clk 0:02:29]}  dxe4 {[%clk 0:02:17]} 26. gxf6 {[%clk 0:02:28]}  exf3 {[%clk 0:02:16]} 27. Nxf3 {[%clk 0:02:19]}  Qxf4 {[%clk 0:02:15]} 28. fxg7 {[%clk 0:02:18]}  Rd5 {[%clk 0:02:15]} 29. Nh2 {[%clk 0:02:07]}  Qxf2 {[%clk 0:02:01]} 30. Rxf2 {[%clk 0:02:08]}  Kxg7 {[%clk 0:02:01]} 31. Ng4 {[%clk 0:02:05]}  Bg6 {[%clk 0:02:01]} 32. Rg2 {[%clk 0:01:56]}  Rh8+ {[%clk 0:01:59]} 33. Kg1 {[%clk 0:01:56]}  Rg5 {[%clk 0:01:59]} 34. Ne5 {[%clk 0:01:55]}  Rxg2+ {[%clk 0:01:53]} 35. Kxg2 {[%clk 0:01:56]}  Rh5 {[%clk 0:01:53]} 36. Nxc6 {[%clk 0:01:53]}  Rg5+ {[%clk 0:01:35]} 37. Kf2 {[%clk 0:01:51]}  Rh5 {[%clk 0:01:26]} 38. Rg1 {[%clk 0:01:46]}  Rh2+ {[%clk 0:01:14]} 39. Rg2 {[%clk 0:01:46]}  Rxg2+ {[%clk 0:01:14]} 40. Kxg2 {[%clk 0:01:47]}  Bh5 {[%clk 0:01:09]} 41. Nxa5 {[%clk 0:01:41]}  Bd1 {[%clk 0:01:04]} 42. Nb7 {[%clk 0:01:41]}  c4 {[%clk 0:00:59]} 43. bxc4 {[%clk 0:01:33]}  Bxc2 {[%clk 0:00:43]} 44. Nc5 {[%clk 0:01:33]} 1-0

[Event "November 21 Early 2023"]
[Site "https://www.chess.com"]
[Date "2023.11.21"]
[Round "2"]
[White "Pein, Jonathan"]
[Black "Golubev, Mikhail"]
[Result "1-0"]
[Board "155"]
[TimeControl "180+1"]
[WhiteFideId "417092"]
[BlackFideId "14100983"]
[WhiteElo "2192"]
[BlackElo "2352"]
[WhiteTeam "ENG"]
[BlackTeam "UKR"]
[WhiteClock "0:00:08"]
[BlackClock "0:00:00"]

1. b3 {[%clk 0:03:00]}  d6 {[%clk 0:02:59]} 2. Bb2 {[%clk 0:03:01]}  Nd7 {[%clk 0:02:59]} 3. d4 {[%clk 0:03:01]}  Ngf6 {[%clk 0:02:59]} 4. g3 {[%clk 0:03:02]}  g6 {[%clk 0:02:59]} 5. Bg2 {[%clk 0:03:02]}  Bg7 {[%clk 0:03:00]} 6. Nf3 {[%clk 0:03:03]}  O-O {[%clk 0:02:59]} 7. O-O {[%clk 0:03:04]}  a5 {[%clk 0:02:59]} 8. a3 {[%clk 0:03:01]}  a4 {[%clk 0:02:57]} 9. b4 {[%clk 0:03:02]}  d5 {[%clk 0:02:57]} 10. Nbd2 {[%clk 0:03:01]}  Nb6 {[%clk 0:02:50]} 11. Ne5 {[%clk 0:02:58]}  c6 {[%clk 0:02:48]} 12. Rc1 {[%clk 0:02:52]}  Be6 {[%clk 0:02:41]} 13. Re1 {[%clk 0:02:46]}  Qc8 {[%clk 0:02:36]} 14. c4 {[%clk 0:02:41]}  dxc4 {[%clk 0:02:35]} 15. Ndxc4 {[%clk 0:02:41]}  Nxc4 {[%clk 0:02:31]} 16. Nxc4 {[%clk 0:02:42]}  Qc7 {[%clk 0:02:23]} 17. e4 {[%clk 0:02:34]}  Rfd8 {[%clk 0:02:23]} 18. Qe2 {[%clk 0:02:25]}  Bxc4 {[%clk 0:02:10]} 19. Qxc4 {[%clk 0:02:24]}  Qd7 {[%clk 0:01:57]} 20. h3 {[%clk 0:02:10]}  e6 {[%clk 0:01:57]} 21. Red1 {[%clk 0:02:09]}  Ne8 {[%clk 0:01:54]} 22. Rc2 {[%clk 0:02:04]}  Nc7 {[%clk 0:01:53]} 23. Rcd2 {[%clk 0:02:03]}  Nb5 {[%clk 0:01:49]} 24. h4 {[%clk 0:01:56]}  h5 {[%clk 0:01:36]} 25. Bh3 {[%clk 0:01:52]}  Qe7 {[%clk 0:01:36]} 26. Rd3 {[%clk 0:01:37]}  Rd7 {[%clk 0:01:30]} 27. Ba1 {[%clk 0:01:01]}  Rad8 {[%clk 0:01:27]} 28. d5 {[%clk 0:00:57]}  exd5 {[%clk 0:00:46]} 29. exd5 {[%clk 0:00:54]}  Rxd5 {[%clk 0:00:46]} 30. Rxd5 {[%clk 0:00:47]}  Rxd5 {[%clk 0:00:43]} 31. Rxd5 {[%clk 0:00:33]}  cxd5 {[%clk 0:00:36]} 32. Qxd5 {[%clk 0:00:16]}  Nc7 {[%clk 0:00:27]} 33. Qd1 {[%clk 0:00:12]}  Bxa1 {[%clk 0:00:25]} 34. Qxa1 {[%clk 0:00:13]}  b5 {[%clk 0:00:22]} 35. Qd4 {[%clk 0:00:13]}  Qe1+ {[%clk 0:00:15]} 36. Kg2 {[%clk 0:00:13]}  Ne6 {[%clk 0:00:15]} 37. Bxe6 {[%clk 0:00:13]}  Qxe6 {[%clk 0:00:14]} 38. Qc5 {[%clk 0:00:11]}  Qe4+ {[%clk 0:00:13]} 39. Kg1 {[%clk 0:00:12]}  Qd3 {[%clk 0:00:13]} 40. Qe3 {[%clk 0:00:07]}  Qxe3 {[%clk 0:00:12]} 41. fxe3 {[%clk 0:00:08]}  Kg7 {[%clk 0:00:13]} 42. Kf2 {[%clk 0:00:09]}  Kf6 {[%clk 0:00:13]} 43. Ke2 {[%clk 0:00:08]}  Ke5 {[%clk 0:00:13]} 44. Kd3 {[%clk 0:00:08]}  f6 {[%clk 0:00:10]} 45. e4 {[%clk 0:00:08]}  f5 {[%clk 0:00:09]} 46. exf5 {[%clk 0:00:07]}  Kxf5 {[%clk 0:00:08]} 47. Kd4 {[%clk 0:00:06]}  Kg4 {[%clk 0:00:08]} 48. Kc5 {[%clk 0:00:07]}  Kxg3 {[%clk 0:00:08]} 49. Kxb5 {[%clk 0:00:07]}  Kxh4 {[%clk 0:00:08]} 50. Kxa4 {[%clk 0:00:07]}  g5 {[%clk 0:00:09]} 51. b5 {[%clk 0:00:08]}  g4 {[%clk 0:00:09]} 52. b6 {[%clk 0:00:09]}  g3 {[%clk 0:00:10]} 53. b7 {[%clk 0:00:10]}  g2 {[%clk 0:00:10]} 54. b8=Q {[%clk 0:00:11]}  g1=Q {[%clk 0:00:11]} 55. Qd8+ {[%clk 0:00:09]}  Qg5 {[%clk 0:00:09]} 56. Qd3 {[%clk 0:00:08]}  Qg4+ {[%clk 0:00:08]} 57. Kb5 {[%clk 0:00:08]}  Qg3 {[%clk 0:00:07]} 58. Qc4+ {[%clk 0:00:07]}  Kh3 {[%clk 0:00:06]} 59. a4 {[%clk 0:00:08]}  h4 {[%clk 0:00:05]} 60. a5 {[%clk 0:00:08]}  Qg5+ {[%clk 0:00:04]} 61. Qc5 {[%clk 0:00:08]}  Qxc5+ {[%clk 0:00:02]} 62. Kxc5 {[%clk 0:00:09]}  Kg3 {[%clk 0:00:03]} 63. a6 {[%clk 0:00:09]}  h3 {[%clk 0:00:03]} 64. a7 {[%clk 0:00:10]}  h2 {[%clk 0:00:04]} 65. a8=Q {[%clk 0:00:10]}  Kf2 {[%clk 0:00:00]} 66. Qh1 {[%clk 0:00:08]} 1-0

[Event "November 21 Early 2023"]
[Site "https://www.chess.com"]
[Date "2023.11.21"]
[Round "2"]
[White "Ljukin, Sergei"]
[Black "Papasimakopoulos, Alexandros"]
[Result "0-1"]
[Board "159"]
[TimeControl "180+1"]
[WhiteFideId "14102200"]
[BlackFideId "4244125"]
[WhiteElo "2312"]
[BlackElo "2346"]
[WhiteTeam "UKR"]
[BlackTeam "GRE"]
[WhiteClock "0:00:21"]
[BlackClock "0:00:57"]

1. e4 {[%clk 0:03:00]}  e6 {[%clk 0:02:59]} 2. d4 {[%clk 0:03:00]}  d5 {[%clk 0:03:00]} 3. Nc3 {[%clk 0:03:00]}  Bb4 {[%clk 0:02:59]} 4. e5 {[%clk 0:03:00]}  c5 {[%clk 0:02:59]} 5. a3 {[%clk 0:03:00]}  Bxc3+ {[%clk 0:02:59]} 6. bxc3 {[%clk 0:03:01]}  Nc6 {[%clk 0:02:59]} 7. h4 {[%clk 0:03:01]}  Bd7 {[%clk 0:02:58]} 8. h5 {[%clk 0:03:00]}  Qa5 {[%clk 0:02:59]} 9. Bd2 {[%clk 0:02:59]}  O-O-O {[%clk 0:02:52]} 10. Qg4 {[%clk 0:02:44]}  Nge7 {[%clk 0:02:51]} 11. Nf3 {[%clk 0:02:39]}  Qa4 {[%clk 0:02:50]} 12. Rc1 {[%clk 0:02:22]}  f6 {[%clk 0:02:44]} 13. Qxg7 {[%clk 0:02:17]}  Rdg8 {[%clk 0:02:38]} 14. Qxf6 {[%clk 0:02:17]}  Rf8 {[%clk 0:02:38]} 15. Qh4 {[%clk 0:02:16]}  Nf5 {[%clk 0:02:38]} 16. Qh3 {[%clk 0:01:56]}  cxd4 {[%clk 0:02:37]} 17. cxd4 {[%clk 0:01:55]}  Nfxd4 {[%clk 0:02:33]} 18. Nxd4 {[%clk 0:01:55]}  Nxd4 {[%clk 0:02:34]} 19. Bd3 {[%clk 0:01:52]}  Rhg8 {[%clk 0:02:31]} 20. c3 {[%clk 0:01:37]}  Nb3 {[%clk 0:02:24]} 21. Bc2 {[%clk 0:01:37]}  Qxa3 {[%clk 0:02:24]} 22. Bxb3 {[%clk 0:01:37]}  Qxb3 {[%clk 0:02:25]} 23. O-O {[%clk 0:01:37]}  Qc4 {[%clk 0:02:20]} 24. Be3 {[%clk 0:01:36]}  a6 {[%clk 0:02:18]} 25. Bd4 {[%clk 0:01:33]}  Qe2 {[%clk 0:02:15]} 26. Rce1 {[%clk 0:01:27]}  Qg4 {[%clk 0:02:13]} 27. Qxg4 {[%clk 0:01:27]}  Rxg4 {[%clk 0:02:14]} 28. f3 {[%clk 0:01:23]}  Rg5 {[%clk 0:02:13]} 29. g4 {[%clk 0:01:21]}  a5 {[%clk 0:02:04]} 30. Kh2 {[%clk 0:01:16]}  a4 {[%clk 0:02:01]} 31. Kh3 {[%clk 0:01:14]}  Rg7 {[%clk 0:01:57]} 32. f4 {[%clk 0:01:07]}  h6 {[%clk 0:01:53]} 33. Be3 {[%clk 0:01:03]}  Bb5 {[%clk 0:01:50]} 34. Rf2 {[%clk 0:01:01]}  Bc4 {[%clk 0:01:47]} 35. Ra1 {[%clk 0:00:59]}  b5 {[%clk 0:01:46]} 36. f5 {[%clk 0:00:58]}  exf5 {[%clk 0:01:40]} 37. Bxh6 {[%clk 0:00:58]}  fxg4+ {[%clk 0:01:40]} 38. Kh4 {[%clk 0:00:56]}  Rxf2 {[%clk 0:01:37]} 39. Bxg7 {[%clk 0:00:57]}  Rh2+ {[%clk 0:01:37]} 40. Kg5 {[%clk 0:00:53]}  g3 {[%clk 0:01:35]} 41. e6 {[%clk 0:00:52]}  g2 {[%clk 0:01:31]} 42. h6 {[%clk 0:00:52]}  Rh1 {[%clk 0:01:30]} 43. h7 {[%clk 0:00:44]}  Rxh7 {[%clk 0:01:27]} 44. Kf6 {[%clk 0:00:42]}  Bf1 {[%clk 0:01:22]} 45. e7 {[%clk 0:00:40]}  Kd7 {[%clk 0:01:09]} 46. Rd1 {[%clk 0:00:39]}  Bc4 {[%clk 0:00:57]} 47. Kf7 {[%clk 0:00:24]}  Rxg7+ {[%clk 0:00:57]} 48. Kxg7 {[%clk 0:00:21]}  Kxe7 {[%clk 0:00:57]} 0-1

[Event "November 21 Early 2023"]
[Site "https://www.chess.com"]
[Date "2023.11.21"]
[Round "2"]
[White "Vlassov, Nikolai"]
[Black "Kotepalli, Sai Nirupama"]
[Result "1-0"]
[Board "160"]
[TimeControl "180+1"]
[WhiteFideId "4103360"]
[BlackFideId "5039444"]
[WhiteElo "2324"]
[BlackElo "2388"]
[WhiteTeam "FID"]
[BlackTeam "IND"]
[WhiteClock "0:00:43"]
[BlackClock "0:00:02"]

1. e4 {[%clk 0:03:00]}  c5 {[%clk 0:02:58]} 2. c3 {[%clk 0:03:00]}  Nf6 {[%clk 0:02:54]} 3. e5 {[%clk 0:03:00]}  Nd5 {[%clk 0:02:54]} 4. d4 {[%clk 0:03:00]}  cxd4 {[%clk 0:02:49]} 5. cxd4 {[%clk 0:03:00]}  Nc6 {[%clk 0:02:47]} 6. Nc3 {[%clk 0:03:00]}  Nxc3 {[%clk 0:02:35]} 7. bxc3 {[%clk 0:03:00]}  e6 {[%clk 0:02:23]} 8. f4 {[%clk 0:02:59]}  d6 {[%clk 0:02:22]} 9. Nf3 {[%clk 0:02:59]}  dxe5 {[%clk 0:02:20]} 10. fxe5 {[%clk 0:02:59]}  Be7 {[%clk 0:02:14]} 11. Bd3 {[%clk 0:02:59]}  b6 {[%clk 0:02:05]} 12. Qe2 {[%clk 0:02:58]}  Bb7 {[%clk 0:02:04]} 13. O-O {[%clk 0:02:54]}  O-O {[%clk 0:02:01]} 14. Qe4 {[%clk 0:02:49]}  g6 {[%clk 0:01:56]} 15. Bh6 {[%clk 0:02:48]}  Re8 {[%clk 0:01:56]} 16. Qf4 {[%clk 0:02:46]}  Qd7 {[%clk 0:01:40]} 17. Rf2 {[%clk 0:02:31]}  Rac8 {[%clk 0:01:30]} 18. Raf1 {[%clk 0:02:30]}  Bf8 {[%clk 0:01:28]} 19. h4 {[%clk 0:02:20]}  Ne7 {[%clk 0:01:23]} 20. Ng5 {[%clk 0:02:08]}  Nf5 {[%clk 0:01:19]} 21. Bxf8 {[%clk 0:02:04]}  Rxf8 {[%clk 0:01:05]} 22. g4 {[%clk 0:01:25]}  Ng7 {[%clk 0:00:15]} 23. Nxf7 {[%clk 0:01:18]}  Nf5 {[%clk 0:00:06]} 24. gxf5 {[%clk 0:00:58]}  Rxf7 {[%clk 0:00:04]} 25. fxe6 {[%clk 0:00:54]}  Rxf4 {[%clk 0:00:02]} 26. exd7 {[%clk 0:00:53]}  Rg4+ {[%clk 0:00:01]} 27. Kh2 {[%clk 0:00:54]}  Rd8 {[%clk 0:00:02]} 28. Rf8+ {[%clk 0:00:51]}  Rxf8 {[%clk 0:00:01]} 29. Rxf8+ {[%clk 0:00:51]}  Kxf8 {[%clk 0:00:02]} 30. d8=Q+ {[%clk 0:00:52]}  Kg7 {[%clk 0:00:02]} 31. Qd7+ {[%clk 0:00:52]}  Kh6 {[%clk 0:00:02]} 32. Qxg4 {[%clk 0:00:51]}  Kg7 {[%clk 0:00:02]} 33. Qd7+ {[%clk 0:00:51]}  Kh6 {[%clk 0:00:02]} 34. Qxb7 {[%clk 0:00:51]}  Kh5 {[%clk 0:00:01]} 35. Kg3 {[%clk 0:00:48]}  Kh6 {[%clk 0:00:01]} 36. e6 {[%clk 0:00:46]}  a5 {[%clk 0:00:01]} 37. e7 {[%clk 0:00:46]}  b5 {[%clk 0:00:01]} 38. e8=Q {[%clk 0:00:46]}  a4 {[%clk 0:00:02]} 39. Qf8+ {[%clk 0:00:42]}  Kh5 {[%clk 0:00:02]} 40. Be2# {[%clk 0:00:43]} 1-0

[Event "November 21 Early 2023"]
[Site "https://www.chess.com"]
[Date "2023.11.21"]
[Round "2"]
[White "Hilary46"]
[Black "Dwilewicz, Katarzyna"]
[Result "1-0"]
[Board "161"]
[TimeControl "180+1"]
[BlackFideId "1148486"]
[WhiteElo "2593"]
[BlackElo "2098"]
[BlackTeam "POL"]
[WhiteClock "0:01:01"]
[BlackClock "0:00:04"]

1. e4 {[%clk 0:03:00]}  c5 {[%clk 0:02:55]} 2. Nf3 {[%clk 0:03:01]}  Nc6 {[%clk 0:02:54]} 3. d4 {[%clk 0:03:01]}  cxd4 {[%clk 0:02:53]} 4. Nxd4 {[%clk 0:03:02]}  Nf6 {[%clk 0:02:52]} 5. Nc3 {[%clk 0:03:01]}  d6 {[%clk 0:02:53]} 6. Bg5 {[%clk 0:03:00]}  e6 {[%clk 0:02:51]} 7. Qd2 {[%clk 0:02:57]}  a6 {[%clk 0:02:51]} 8. O-O-O {[%clk 0:02:57]}  Bd7 {[%clk 0:02:51]} 9. f4 {[%clk 0:02:57]}  Be7 {[%clk 0:02:48]} 10. Nf3 {[%clk 0:02:57]}  h6 {[%clk 0:02:42]} 11. Bxf6 {[%clk 0:02:56]}  gxf6 {[%clk 0:02:40]} 12. f5 {[%clk 0:02:54]}  Ne5 {[%clk 0:02:37]} 13. Nd4 {[%clk 0:02:51]}  b5 {[%clk 0:02:32]} 14. Bd3 {[%clk 0:02:51]}  Qa5 {[%clk 0:02:16]} 15. Kb1 {[%clk 0:02:47]}  Rc8 {[%clk 0:02:12]} 16. Rhf1 {[%clk 0:02:29]}  Qb6 {[%clk 0:01:58]} 17. Nce2 {[%clk 0:02:27]}  Rc7 {[%clk 0:01:27]} 18. fxe6 {[%clk 0:02:07]}  fxe6 {[%clk 0:01:26]} 19. Qe3 {[%clk 0:02:07]}  Qc5 {[%clk 0:00:58]} 20. Qh3 {[%clk 0:02:05]}  Nxd3 {[%clk 0:00:54]} 21. Rxd3 {[%clk 0:01:45]}  e5 {[%clk 0:00:44]} 22. Qh5+ {[%clk 0:01:43]}  Kd8 {[%clk 0:00:42]} 23. Rc3 {[%clk 0:01:43]}  Qb4 {[%clk 0:00:32]} 24. Nf5 {[%clk 0:01:37]}  Rxc3 {[%clk 0:00:22]} 25. Nxc3 {[%clk 0:01:38]}  Be6 {[%clk 0:00:17]} 26. Nd5 {[%clk 0:01:31]}  Bxd5 {[%clk 0:00:13]} 27. exd5 {[%clk 0:01:32]}  Qc4 {[%clk 0:00:12]} 28. Rd1 {[%clk 0:01:27]}  Rf8 {[%clk 0:00:07]} 29. Nxh6 {[%clk 0:01:11]}  Qf4 {[%clk 0:00:06]} 30. Nf5 {[%clk 0:01:07]}  Kd7 {[%clk 0:00:06]} 31. Qh7 {[%clk 0:01:02]}  Qg4 {[%clk 0:00:05]} 32. Qxe7+ {[%clk 0:01:01]}  Kc8 {[%clk 0:00:06]} 33. Qxf8+ {[%clk 0:01:02]}  Kb7 {[%clk 0:00:04]} 34. Qe7+ {[%clk 0:01:01]} 1-0